Workbook

Sheet 2017
A2: TABLEAU CALCUL DE L'IRPP 2017
A3: Hypothèses:
A4: CNSS salariale: | B4: 0.0918
A5: CNSS patronale: | B5: 0.1657
A6: Accident de travail: | B6: 0.01
A7: CNSS RI/TR | B7: 0
A8: TFP: | B8: 0.02
A9: FOPROLOS: | B9: 0.01
A11: Situation | B11: Marié | G11: =IF(B11="Célibataire",0,150) -> 150
A12: 1er enfant | B12: Pris en charge agé moins 20 ans | G12: =IF(B12="non pris en charge",0,IF(B12="Pris en charge agé moins 20 ans",90,1000)) -> 90
A13: 2ème enfant | B13: Pris en charge agé moins 20 ans | G13: =IF(B13="non pris en charge",0,IF(B13="Pris en charge agé moins 20 ans",75,1000)) -> 75
A14: 3ème enfant | B14: Pris en charge agé moins 20 ans | G14: =IF(B14="non pris en charge",0,IF(B14="Pris en charge agé moins 20 ans",60,1000)) -> 60
A15: 4ème enfant | B15: Non pris en charge | G15: =IF(B15="non pris en charge",0,IF(B15="Pris en charge agé moins 20 ans",45,1000)) -> 0
F16: déductions | G16: =SUM(G11:G15) -> 375
A17: Récapitulatif | B17: Annuel | C17: Mensuel
A18: Salaire brut | B18: =+C18*B31 -> 15240.67386 | C18: 1270.056155 | E18: CALCUL DE L'IMPOT
A19: CNSS salariale | B19: =B18*B4 -> 1399.09386 | C19: =C18*B4 -> 116.591155 | E19: Salaire imposable 1 | G19: =B20 -> 13841.58
A20: Imposable | B20: =+B18-B19 -> 13841.58 | C20: =+C18-C19 -> 1153.465 | E20: Abattement | G20: =IF(G19*0.1<=2000,G19*0.1,2000) -> 1384.158
A21: IRPP | B21: =G29 -> 1841.58 | C21: =B21/B31 -> 153.465 | E21: Déduction | G21: =G16 -> 375
A22: Salaire net | B22: =B20-B21 -> 12000 | C22: =+C20-C21 -> 1000 | E22: Salaire imposable 2 | G22: =G19-G20-G21 -> 12082.422
G23: =ROUNDUP(G22,0) -> 12083
A24: Charges patronales | B24: Annuel | C24: Mensuel | E24: 0,000-------> 5000,000 | G24: 0
A25: CNSS patronale | C25: =C18*B5 -> 210.4483049 | E25: 5000,001-------> 20000,000 | G25: =IF(G23>5000,IF(G23<20000,(G23-5000)*0.26,3900),0) -> 1841.58
A26: Accident de travail | C26: =C18*B6 -> 12.70056155 | E26: 20000,001-------> 30000,000 | G26: =IF(G23>20000,IF(G23<30000,(G23-20000)*0.28,2800),0) -> 0
A27: TFP | C27: =C18*B8 -> 25.4011231 | E27: 30000,001-------> 50000,000 | G27: =IF(G23>30000,IF(G23<50000,(G23-30000)*0.32,6400),0) -> 0
A28: FOPROLOS | C28: =C18*B9 -> 12.70056155 | E28: 50000,001 et plus | G28: =IF(G23>50000,(G23-50000)*0.35,0) -> 0
A29: Totaux | C29: =SUM(C25:C28) -> 261.2505511 | E29: Totaux | G29: =SUM(G24:G28) -> 1841.58
A31: Nombre mois | B31: 12
C34: 1000
A37: Charge globale: | C37: =C18+C29+B7/3 -> 1531.306706
C39: =+C37-C34 -> 531.3067061 | D39: =+C39/C34 -> 0.5313067061
A41: Non pris en charge
A42: Pris en charge agé moins 20 ans
A43: Etudiant non boursié de moins de 25 ans
A44: Célibataire
A45: Marié
A46: Divorcé
A47: Veuf
A48: 0
A49: 143.423
A50: 215.134
A51: 286.845
A52: 430.268
A53: 573.69
A54: 0.0918
A55: 0
A56: 0.1657
A57: 0.1607
A58: 0

Sheet 2016
A2: TABLEAU CALCUL DE L'IRPP 2016
A3: Hypothèses:
A4: CNSS salariale: | B4: 0
A5: CNSS patronale: | B5: 0
A6: Accident de travail: | B6: 0.01
A7: CNSS RI/TR | B7: 143.423
A8: TFP: | B8: 0.02
A9: FOPROLOS: | B9: 0.01
A11: Situation | B11: Marié | G11: =IF(B11="Célibataire",0,150) -> 150
A12: 1er enfant | B12: Non pris en charge | G12: =IF(B12="non pris en charge",0,IF(B12="Pris en charge agé moins 20 ans",90,1000)) -> 0
A13: 2ème enfant | B13: Non pris en charge | G13: =IF(B13="non pris en charge",0,IF(B13="Pris en charge agé moins 20 ans",75,1000)) -> 0
A14: 3ème enfant | B14: Non pris en charge | G14: =IF(B14="non pris en charge",0,IF(B14="Pris en charge agé moins 20 ans",60,1000)) -> 0
A15: 4ème enfant | B15: Non pris en charge | G15: =IF(B15="non pris en charge",0,IF(B15="Pris en charge agé moins 20 ans",45,1000)) -> 0
F16: déductions | G16: =SUM(G11:G15) -> 150
A17: Récapitulatif | B17: Annuel | C17: Mensuel
A18: Salaire brut | B18: =+C18*B31 -> 14177.5 | C18: 1181.458333 | E18: CALCUL DE L'IMPOT
A19: CNSS salariale | B19: =B18*B4 -> 0 | C19: =C18*B4 -> 0 | E19: Salaire imposable 1 | G19: =B20 -> 14177.5
A20: Imposable | B20: =+B18-B19 -> 14177.5 | C20: =+C18-C19 -> 1181.458333 | E20: Abattement | G20: =IF(G19*0.1<=2000,G19*0.1,2000) -> 1417.75
A21: IRPP | B21: =G30 -> 2177.5 | C21: =B21/B31 -> 181.4583333 | E21: Déduction | G21: =G16 -> 150
A22: Salaire net | B22: =B20-B21 -> 12000 | C22: =+C20-C21 -> 1000 | E22: Salaire imposable 2 | G22: =G19-G20-G21 -> 12609.75
G23: =ROUNDUP(G22,0) -> 12610
A24: Charges patronales | B24: Annuel | C24: Mensuel | E24: 0,000-------> 1500,000 | G24: 0
A25: CNSS patronale | C25: =C18*B5 -> 0 | E25: 1500,001-------> 5000,000 | G25: =IF(G23>1500,IF(G23<5000,(G23-1500)*0.15,525),0) -> 525
A26: Accident de travail | C26: =C18*B6 -> 11.81458333 | E26: 5000,001-------> 10000,000 | G26: =IF(G23>5000,IF(G23<10000,(G23-5000)*0.2,1000),0) -> 1000
A27: TFP | C27: =C18*B8 -> 23.62916667 | E27: 10000,001-------> 20000,000 | G27: =IF(G23>10000,IF(G23<20000,(G23-10000)*0.25,2500),0) -> 652.5
A28: FOPROLOS | C28: =C18*B9 -> 11.81458333 | E28: 20000,001-------> 50000,000 | G28: =IF(G23>20000,IF(G23<50000,(G23-20000)*0.3,9000),0) -> 0
A29: Totaux | C29: =SUM(C25:C28) -> 47.25833333 | E29: 50000,001 et plus | G29: =IF(G28=9000,(G23-50000)*0.35,0) -> 0
E30: Totaux | G30: =SUM(G24:G29) -> 2177.5
A31: Nombre mois | B31: 12
C34: 1000
A37: Charge sociale globale: | C37: =C18+C29 -> 1228.716667
A42: Non pris en charge
A43: Pris en charge agé moins 20 ans
A44: Etudiant non boursié de moins de 25 ans
A45: Célibataire
A46: Marié
A47: Divorcé
A48: Veuf
A49: 0
A50: 143.423
A51: 215.134
A52: 286.845
A53: 430.268
A54: 573.69
A55: 0.0918
A56: 0
A57: 0.1657
A58: 0.1607
A59: 0
